Cogmind - Beta 13 @@@ ROGUE MODE // 2024.04.12 @ 23:13:43 Player: djrubbie Result: Self-destructed Performance ------------- Evolutions (1) 500 Regions Visited (5) 1000 Robots Destroyed (53) 265 Value Destroyed (1171) 1171 Prototype IDs (25) 500 Alien Tech Used (0) 0 Bonus (402) 402 TOTAL SCORE: 3838 Bonus ------- Follower Combat Kills 123 Aligned with FarCom 300 Friendly Fire -21 Cogmind --------- Core Integrity 165/400 Matter 293/300 Energy 140/140 System Corruption 2% Temperature Cool (0) Movement Treading (240) Ox1 Location -9/Exiles Parts ------- > --- POWER (1) -------- Light Deuterium Engine > --- PROPULSION (2) --- Improved Treads Improved Treads > --- UTILITY (4) ------ High-capacity Storage Unit Signal Interpreter Improved Trap Extractor (0/6) > --- WEAPON (2) ------- Light Assault Rifle Light Cannon > --- INVENTORY (20) --- Deuterium Engine Light Deuterium Engine Light Deuterium Engine Light Treads Light Treads Light Treads Light Treads Improved Treads Signal Interpreter Hacking Suite Light Assault Rifle Peak State ------------ > --- POWER ------------ Light Nuclear Core > --- PROPULSION ------- Improved Treads Improved Treads > --- UTILITY ---------- High-capacity Storage Unit Signal Interpreter Improved Trap Extractor > --- WEAPON ----------- Light Assault Rifle Light Assault Rifle > --- INVENTORY -------- Deuterium Engine Light Deuterium Engine Light Deuterium Engine Light Deuterium Engine Light Treads Light Treads Light Treads Signal Interpreter Hacking Suite Light Assault Rifle Light Assault Rifle Light Assault Rifle [Rating: 17] Favorites ----------- Power Light Ion Engine Engine Light Ion Engine Power Core Light Nuclear Core Propulsion Light Treads Treads Light Treads Utility Signal Interpreter Device Improved Trap Extractor Storage Large Storage Unit Processor Signal Interpreter Weapon Light Assault Rifle Energy Gun Small Laser Ballistic Gun Light Assault Rifle Ballistic Cannon Light Cannon Build | -11 -10 -10 -9 -9 -9 ------- Run | Yrd Mat Min Mat Min Exi Slots Evolved 2 | . . . 2 . . Power . | . . . . . . Propulsion . | . . . . . . Utility 2 | . . . 2 . . Weapon . | . . . . . . Parts Attached 32 | 7 5 1 19 . . Power 4 | 1 . 1 2 . . Engine 3 | 1 . 1 1 . . Core 1 | . . . 1 . . Reactor . | . . . . . . Propulsion 11 | 2 2 . 7 . . Treads 11 | 2 2 . 7 . . Leg . | . . . . . . Wheel . | . . . . . . Hover . | . . . . . . Flight . | . . . . . . Utility 7 | 2 2 . 3 . . Device 3 | 1 . . 2 . . Storage 3 | 1 1 . 1 . . Processor 1 | . 1 . . . . Hackware . | . . . . . . Protection . | . . . . . . Artifact . | . . . . . . Weapon 10 | 2 1 . 7 . . Energy Gun 1 | 1 . . . . . Energy Cannon . | . . . . . . Ballistic Gun 8 | 1 1 . 6 . . Ballistic Cannon 1 | . . . 1 . . Launcher . | . . . . . . Special Weapon . | . . . . . . Impact Weapon . | . . . . . . Slashing Weapon . | . . . . . . Piercing Weapon . | . . . . . . Special Melee Weapon . | . . . . . . Unidentified Prototypes . | . . . . . . Parts Lost 8 | . . . 8 . . Power 1 | . . . 1 . . Propulsion 1 | . . . 1 . . Utility 1 | . . . 1 . . Weapon 5 | . . . 5 . . Highest Loss Streak 2 | . . . 2 . . To Critical Strikes . | . . . . . . Average Slot Usage (%) 93 | . 100 100 88 88 88 Engine 9 | . 14 14 6 11 11 Core 2 | . . . 4 . . Treads 24 | . 28 28 21 22 22 Device 9 | . 11 . 11 11 11 Storage 12 | . 14 14 11 11 11 Processor 9 | . 2 14 11 11 11 Ballistic Gun 22 | . 25 28 20 11 11 Ballistic Cannon 1 | . . . 1 11 11 Naked Turns . | . . . . . . Heaviest Build 54 | 12 27 32 54 52 52 Greatest Support 46 | 40 40 40 46 46 46 Greatest Overweight (x) 2 | . . . 2 1 1 Average Overweight (x) . | . . . . 1 1 Largest Inventory Capacity 20 | 8 15 15 20 20 20 Average Capacity 17 | 7 14 15 19 20 20 Most Carried 15 | 5 14 15 15 11 11 Average Carried 11 | 1 9 13 12 11 11 Final Capacity 20 | 8 15 15 20 20 20 Final Carried 15 | 2 14 15 11 11 11 Class Distribution -------------------- 100% | Mutant Dominant Class ---------------- Mutant | -10/Materials Mutant | -10/Mines Mutant | -9/Materials Mutant | -9/Mines Mutant | -9/Exiles Resources | -11 -10 -10 -9 -9 -9 ----------- Run | Yrd Mat Min Mat Min Exi Matter Collected 1009 | 308 185 18 498 . . Remotely . | . . . . . . Salvage Created 1574 | 92 333 78 1071 . . Parts 123 | 10 31 . 82 . . Haulers Intercepted 1 | . . . 1 . . Recyclers Shooed 4 | 1 3 . . . . Parts Field Recycled . | . . . . . . Retrieved Matter . | . . . . . . Parts Self-Destructed . | . . . . . . Prevented . | . . . . . . Kills | -11 -10 -10 -9 -9 -9 ------- Run | Yrd Mat Min Mat Min Exi Combat Hostiles Destroyed 36 | . 11 . 25 . . Guns 32 | . 11 . 21 . . Cannons 4 | . . . 4 . . Classes Destroyed 9 | 2 4 1 2 . . Worker 3 | 2 . . 1 . . Tunneler 2 | 2 . . . . . Hauler 1 | . . . 1 . . Recycler 2 | . . 1 1 . . Operator 6 | . 2 . 4 . . Watcher 3 | . 1 . 2 . . Swarmer 14 | . 6 . 8 . . Grunt 17 | . 5 . 12 . . Sentry 5 | . . . 5 . . Best Kill Streak 5 | 2 4 1 5 . . Combat Bots Only 5 | . 4 . 5 . . Max Kills in Single Turn 2 | 1 1 1 2 . . Gunslinging . | . . . . . . Exploded . | . . . . . . Melee . | . . . . . . Uniques/NPCs Destroyed . | . . . . . . Combat | -11 -10 -10 -9 -9 -9 -------- Run | Yrd Mat Min Mat Min Exi Hostile Shots Fired 232 | . 39 . 193 . . Missed 78 | . 14 . 64 . . Damage Taken 1663 | . 223 23 1417 . . Core 279 | . 21 23 235 . . Absorbed by Shields . | . . . . . . Regen/Repaired (Parts) 127 | . . . 127 . . Core Remaining (%) 91 | 100 . 82 . . . Volleys Fired 180 | 13 38 2 127 . . Largest 2 | 2 2 2 2 . . Hottest 60 | 60 60 40 55 . . Shots Fired 340 | 26 76 4 234 . . Gun 334 | 26 76 4 228 . . Cannon 6 | . . . 6 . . Launcher . | . . . . . . Special . | . . . . . . Kinetic 314 | 13 63 4 234 . . Thermal 26 | 13 13 . . . . Explosive . | . . . . . . Electromagnetic . | . . . . . . Robot Hit Streak 9 | 2 7 2 9 . . Robot Miss Streak 5 | 3 4 2 5 . . Penetration Max . | . . . . . . Secondary Targets 5 | . 1 . 4 . . Max Gunslinging Chain 1 | . 1 . 1 . . Shots Hit Robots 182 | 12 37 2 131 . . Core Hits 101 | 5 24 2 70 . . Critical Kills . | . . . . . . Critical Parts Destroyed . | . . . . . . Critical Strikes . | . . . . . . Melee Attacks . | . . . . . . Impact . | . . . . . . Slashing . | . . . . . . Piercing . | . . . . . . Sneak Attacks . | . . . . . . Combat Hostiles . | . . . . . . Follow-up Attacks . | . . . . . . Damage Inflicted 1833 | 138 417 52 1226 . . Guns 1684 | 138 391 40 1115 . . Cannons 101 | . . . 101 . . Explosions . | . . . . . . Melee . | . . . . . . Ramming 48 | . 26 12 10 . . Kinetic 1671 | 93 322 40 1216 . . Thermal 114 | 45 69 . . . . Explosive . | . . . . . . Electromagnetic . | . . . . . . Impact . | . . . . . . Slashing . | . . . . . . Piercing . | . . . . . . Highest Corruption 2 | . . . 2 2 2 Average Corruption 2 | . . . 2 2 2 Corruption Purged . | . . . . . . Corruption Blocked . | . . . . . . Effects 18 | . . . 14 . 4 Message Errors 3 | . . . 1 . 2 Matter Fused 7 | . . . 6 . 1 Heat Flow Errors 2 | . . . 2 . . Energy Discharges 2 | . . . 1 . 1 Data Loss (minor) 2 | . . . 2 . . Data Loss (major) 2 | . . . 2 . . Overload Shots . | . . . . . . Overflow Damage . | . . . . . . Projectiles . | . . . . . . Explosions . | . . . . . . Melee . | . . . . . . Knockbacks 2 | . 1 . 1 . . Impact 1 | . 1 . . . . Kinetic 1 | . . . 1 . . Secondary . | . . . . . . Self-Inflicted Damage . | . . . . . . Shots . | . . . . . . Rammed 10 | . 5 1 4 . . Targets Rammed 11 | . 5 2 4 . . Kicked . | . . . . . . Crushed 1 | . . 1 . . . Highest Temperature 259 | . 12 2 259 . . Average Temperature 32 | . 6 1 35 . . Received Heat Transfer 504 | . 48 . 456 . . Siege Activations . | . . . . . . Robots Corrupted . | . . . . . . Combat Hostiles . | . . . . . . Parts Fried . | . . . . . . Impact Corruptions . | . . . . . . Robots Melted . | . . . . . . Combat Hostiles . | . . . . . . Parts Melted . | . . . . . . Heat Transferred 250 | 100 150 . . . . Parts Sabotaged . | . . . . . . Parts Stolen . | . . . . . . Parts Stripped . | . . . . . . Power Chain Reactions . | . . . . . . Alert | -11 -10 -10 -9 -9 -9 ------- Run | Yrd Mat Min Mat Min Exi Peak Influence 286 | 20 193 5 286 95 . Initial 95 | . 13 . . 95 . Average 66 | 6 30 . 105 95 . Maximum Alert Level 1 | . . . 1 . . Low Security (%) 94 | 100 100 100 89 100 . Level 1 5 | . . . 10 . . Level 2 . | . . . . . . Level 3 . | . . . . . . Level 4 . | . . . . . . Level 5 . | . . . . . . High Security . | . . . . . . Max Security . | . . . . . . Squads Dispatched 10 | . 4 . 6 . . Investigation 5 | . 2 . 3 . . Extermination . | . . . . . . Reinforcement 5 | . 2 . 3 . . Assault . | . . . . . . Garrison . | . . . . . . Intercept . | . . . . . . Searches Triggered . | . . . . . . Construction Impeded . | . . . . . . Haulers Reinforced . | . . . . . . Active Scanning Responses . | . . . . . . Cargo Convoy Interrupts . | . . . . . . Stealth | -11 -10 -10 -9 -9 -9 --------- Run | Yrd Mat Min Mat Min Exi Distress Signals 5 | . 2 . 3 . . Communications Jammed . | . . . . . . Distress Signals . | . . . . . . Times Spotted 68 | . 20 1 47 . . Peak Tracking Total 4 | . 3 1 4 . . Tactical Retreats 5 | . 2 . 3 . . Traps | -11 -10 -10 -9 -9 -9 ------- Run | Yrd Mat Min Mat Min Exi Traps Triggered 8 | . 2 . 6 . . Indirectly . | . . . . . . Trap Hack Attempts . | . . . . . . Triggered . | . . . . . . Disarmed . | . . . . . . Reprogrammed . | . . . . . . Reused . | . . . . . . Traps Extracted . | . . . . . . Installed . | . . . . . . Triggered . | . . . . . . Machines | -11 -10 -10 -9 -9 -9 ---------- Run | Yrd Mat Min Mat Min Exi Machines Disabled 4 | . . . 4 . . Max in Single Turn 4 | . . . 4 . . Machines Repaired . | . . . . . . Machines Dismantled . | . . . . . . Machines Sabotaged . | . . . . . . Overloaded Fab Kills . | . . . . . . Hacking | -11 -10 -10 -9 -9 -9 --------- Run | Yrd Mat Min Mat Min Exi Machines Accessed 10 | . 3 2 4 . 1 Terminals 6 | . 2 1 3 . . Fabricators . | . . . . . . Repair Stations 1 | . . . 1 . . Recycling Units 1 | . 1 . . . . Scanalyzers . | . . . . . . Garrison Access . | . . . . . . Total Hacks 18 | . 5 2 10 . 1 Successful 11 | . 2 1 7 . 1 Failed 7 | . 3 1 3 . . Catastrophic . | . . . . . . Database Lockouts . | . . . . . . Manual 1 | . . . . . 1 Terminals 8 | . 4 1 3 . . Fabricators . | . . . . . . Repair Stations 7 | . . . 7 . . Recycling Units 1 | . 1 . . . . Scanalyzers . | . . . . . . Garrison Access . | . . . . . . Terminal Hacks 5 | . 1 1 2 . 1 Record 1 | . . . 1 . . Prototype ID Bank 1 | . 1 . . . . Open Door 1 | . . 1 . . . Hauler Manifests 1 | . . . 1 . . Derelict Proto ID Bank 1 | . . . . . 1 Fabricator Hacks . | . . . . . . Repair Station Hacks 5 | . . . 5 . . Scan Component 3 | . . . 3 . . Repair 2 | . . . 2 . . Recycling Unit Hacks 1 | . 1 . . . . Retrieve Components 1 | . 1 . . . . Scanalyzer . | . . . . . . Garrison Access Hacks . | . . . . . . Unauthorized Hacks . | . . . . . . Terminals . | . . . . . . Fabricators . | . . . . . . Repair Stations . | . . . . . . Recycling Units . | . . . . . . Scanalyzers . | . . . . . . Garrison Access . | . . . . . . Data Cores Recovered 1 | . . . 1 . . Used . | . . . . . . Hacking Detections 7 | . 3 1 3 . . Full Trace Events . | . . . . . . Feedback Events . | . . . . . . Feedback Blocked . | . . . . . . Robot Schematics Acquired . | . . . . . . Robots Built . | . . . . . . Authchips . | . . . . . . Time . | . . . . . . Total Robot Build Rating . | . . . . . . Part Schematics Acquired . | . . . . . . Parts Built . | . . . . . . Authchips . | . . . . . . Time . | . . . . . . Total Part Build Rating . | . . . . . . Parts Repaired 2 | . . . 2 . . Time 76 | . . . 76 . . Parts Recycled . | . . . . . . Recycled Matter . | . . . . . . Retrieved Matter . | . . . . . . Retrieved Components 3 | . 3 . . . . Parts Scanalyzed . | . . . . . . Part Schematics Acquired . | . . . . . . Parts Damaged . | . . . . . . Bothacking | -11 -10 -10 -9 -9 -9 ------------ Run | Yrd Mat Min Mat Min Exi Used RIF Installer . | . . . . . . Robots Hacked . | . . . . . . Non-combat . | . . . . . . Combat . | . . . . . . Robot Hacks Applied . | . . . . . . Relay Couplers Released . | . . . . . . Fabnet Peak Effective % . | . . . . . . Robots Rewired . | . . . . . . Allies Hacked . | . . . . . . Hacks Repelled . | . . . . . . Allies | -11 -10 -10 -9 -9 -9 -------- Run | Yrd Mat Min Mat Min Exi Total Allies 3 | . . 3 . . . Largest Group 3 | . . 3 2 . . Highest-Rated Group 40 | . . 40 32 . . Highest-Rated Ally 16 | . . 16 16 . . Total Orders . | . . . . . . Ally Attacks 46 | . . 7 39 . . Total Damage 551 | . . 76 475 . . Kills 10 | . . 1 9 . . Allies Corrupted . | . . . . . . Allies Melted . | . . . . . . Intel | -11 -10 -10 -9 -9 -9 ------- Run | Yrd Mat Min Mat Min Exi Robot Analysis Total . | . . . . . . Derelict Logs Recovered 1 | . . 1 . . . Drone Launches . | . . . . . . Drone Recoveries . | . . . . . . Exploration | -11 -10 -10 -9 -9 -9 ------------- Run | Yrd Mat Min Mat Min Exi Turns Passed 7599 | 129 1978 1195 3991 44 262 Spaces Moved 3371 | 51 1049 601 1542 19 109 Core 6 | 6 . . . . . Treads 3365 | 45 1049 601 1542 19 109 Legs . | . . . . . . Wheels . | . . . . . . Hover . | . . . . . . Flight . | . . . . . . Fastest Speed 50 | 50 160 160 160 240 240 Average Speed 192 | 147 160 160 223 240 240 Slowest Speed 320 | 160 160 160 320 240 240 Overloaded Moves . | . . . . . . Propulsion Burnouts . | . . . . . . Robots Hopped . | . . . . . . Cave-ins Triggered . | . . . . . . Exploration Rate (%) 55 | 3 98 93 92 8 39 Regions Visited 5 Branch Regions 3 Pre-discovered Areas 2 | . . 2 . . . Known Exits Taken 4 | . 1 1 1 1 . Unknown Exits Taken 1 | 1 . . . . . Scrap Searched 2 | . . 2 . . . Spaces Dug . | . . . . . . Terrain Destroyed 17 | . . . 17 . . Melee . | . . . . . . Projectile . | . . . . . . AOE 17 | . . . 17 . . Terrain Rammed . | . . . . . . Walls Destroyed . | . . . . . . Machines Disabled . | . . . . . . Actions | -11 -10 -10 -9 -9 -9 --------- Run | Yrd Mat Min Mat Min Exi Total 4202 | 79 1275 830 1891 18 109 Wait 543 | . 160 220 163 . . Move 3366 | 50 1048 600 1541 18 109 Hop . | . . . . . . Pick Up 52 | 9 15 3 25 . . Fast Attach . | . . . . . . Attach 25 | 7 1 . 17 . . Detach 1 | . 1 . . . . Swap 7 | . 4 1 2 . . Drop 17 | . 3 2 12 . . Fire 180 | 13 38 2 127 . . Melee . | . . . . . . Ram . | . . . . . . Kick . | . . . . . . Crush 11 | . 5 2 4 . . Escape Stasis . | . . . . . . Rewire . | . . . . . . Trap . | . . . . . . Miscellaneous . | . . . . . . Route ------- -11/Scrapyard -10/Materials (discovered 5 exits: *Mat x3 / *Min / *Sub) -10/Mines -9/Materials (discovered 4 exits: *Mat x3 / *Min) -9/Mines -9/Exiles History --------- Turn | Location | Event 24 | -11/Scrapyard | Discovered new exit (range 16) 130 | -11/Scrapyard | Entered Materials 235 | -10/Materials | Discovered new exit (range 12) 313 | -10/Materials | Build established: Mutant 403 | -10/Materials | Discovered new exit (range 14) 700 | -10/Materials | Derelicts attacked the area 813 | -10/Materials | Discovered new exit (range 16) 1053 | -10/Materials | Discovered new exit (range 15) 1612 | -10/Materials | Discovered new exit (range 9) 1793 | -10/Materials | Identified exit to Subcaves 2107 | -10/Materials | Identified exit to Mines 2108 | -10/Materials | Entered Mines 2109 | -10/Mines | Learned location of Storage (-7) 2274 | -10/Mines | Assisted by bots powering up and referring to "LRC-V3" 2486 | -10/Mines | Assembled infested the area 2491 | -10/Mines | Assisted by a Guerilla fighting off Assembled 2697 | -10/Mines | Met a Derelict who couldn't figure out how to use a Trap Extractor 3148 | -10/Mines | Discovered new exit (range 7) 3156 | -10/Mines | Identified exit to Materials 3303 | -10/Mines | Entered Materials 3303 | -9/Materials | Accompanied by 2 allies 3303 | -9/Materials | Evolved 2 slots: Utility x2 3856 | -9/Materials | Discovered new exit (range 8) 4067 | -9/Materials | Discovered new exit (range 15) 4116 | -9/Materials | Identified exit to Materials 4383 | -9/Materials | Repaired Imp. Treads 4431 | -9/Materials | Repaired Broken Imp. Treads 4911 | -9/Materials | Discovered exit to Materials (range 7) 5342 | -9/Materials | Discovered exit to Materials (range 11) 6181 | -9/Materials | Identified exit to Mines 6770 | -9/Materials | Core integrity fell below 50% 7294 | -9/Materials | Entered Mines 7328 | -9/Mines | Deemed a non-threat by the Exiles lab entrance 7328 | -9/Mines | Discovered new exit (range 5) 7335 | -9/Mines | Identified exit to Exiles 7338 | -9/Mines | Entered Exiles 7398 | -9/Exiles | Met 8R-AWN 7439 | -9/Exiles | Met EX-HEX 7504 | -9/Exiles | Met EX-BIN 7533 | -9/Exiles | Aligned with FarCom system 7535 | -9/Exiles | Given EX-Vault access code 7590 | -9/Exiles | Opened EX-Vault 7600 | -9/Exiles | Self-destructed Last Messages --------------- Modified TNC 0b10 Alert Chip Cloak of Protection Skeleton Box Trap Reconfigurator Supersonic Drone Bay Army-in-a-Box PSU Rigger Chronowheel AWS/Thermal Latent Energy Streamer Gui. Plasma Cannon Firepult YOLO Cannon AWS/Gauss XL Autogun Array AWS/Autocannon Field Lobotomy Kit Longsword +1 Deploy-a-Sentry Map ----- +----------------------------------------------------+ | | | | | | | | | | | | | | | | | | | | | | | | | | | | | | | | | | | | | | | | | ???????????????????#########?????????????????????? | | ???????????????????# ! #?????????????????????? | | ???????????????????# ! #?????????????????????? | | ???????????????????# !#?????????????????????? | | ???????????????????# X#?????????????????????? | | ???????????????????## @#??????????????????????? | | ???????????????????#X #??????????????????????? | | ???????????????????## #??????????????????????? | | ????????????????????# #??????????????????????? | | ????????????????????# #???###????????????????? | | ????????????????????# #??"""""???????????????? | | ????????????????????# ## """???????????????? | | ????????????????????# X""???????????????? | | ????????????????????# ## """???????????????? | | ??????????????####??# #??"""""???????????????? | | ?????????????""""""?# #???#??????????????????? | | ?????????????"""" ## #??????????????????????? | | ????????????#""X" #??????????????????????? | | ????????????#" #??????????????????????? | | ????????????#" ## #??????????????????????? | | ????????????#""""""?# #?#########????????????? | | ????????????##"###??# #?#"""""""#????????????? | | ????????????????????# #?#"""""""#????????????? | | ????????????????????# #?#"""""""#????????????? | | ???????????????????## ###"" """"#????????????? | | ???????????????????#" """"#????????????? | | ???????????????????#" """#????????????? | | ???????????????????#" """#????????????? | | ???????????????????#" """#????????????? | | ???????????????????#" """#????????????? | +----------------------------------------------------+ Best States ------------- Heat Dissipation 28 Energy Generation 14 Energy Capacity 275 Matter Stores 300 Matter Capacity 300 Sight Range 16 Terrain Scan Density 10 Evasion (%) 50 Recoil Reduction 2 Trap Extractor Capacity 6 Item Schematics ----------------- None Robot Schematics ------------------ None Fabricated ------------ Nothing Alien Tech Used ----------------- None Achievements -------------- None Challenges ------------ None Game ------ Seed ClaymoresAbsorptionScreen Manual? 0 Play Time 00:46:50 Cumulative 17.7 hours Start 2024.04.12 @ 21:54:56 End 2024.04.12 @ 23:13:43 Sessions 1 Manual Loads 0 Difficulty Rogue Special Mode None Game No. 22 Rogue 22 Adventurer 0 Explorer 0 Win Type - Total 0 Types 0/0/0/0/0/0/0/0/0 Lore% 16 Gallery% 12 Achievement% 16 Wizard Run 0 Options --------- Layout 1 ASCII 0 Keyboard 0 Movement Mouse Keybinds 0 Fullscreen 0 Font 28/SmallcapsGlow Map View 50x35 Zoom Use 0% Tactical HUD 0 Map Filters NONE Filters NONE Steam 1 RUN: 27fd27fa-5aca-40e8-af38-576752a4586d